[Event "European Womens-ch 2025"]
[Site "Rhodes"]
[Date "2025.04.01"]
[Round "2.30"]
[White "Bochnickova, Simona"]
[Black "Daulyte-Cornette, Deimante"]
[Result "1/2-1/2"]
[Annotator "RC"]
[ECO "C41"]
[WhiteElo "2167"]
[BlackElo "2389"]
[PlyCount "103"]
[EventDate "2025.03.29"]
[EventType "swiss"]
[EventCountry "GRE"]
[SourceTitle "playchess.com"]
[Source "ChessBase"]
[SourceQuality "1"]
[TimeControl "40/5400+30:1800+30"]

1. e4 {[%emt 0:00:02]} d6 {[%emt 0:00:08]} 2. d4 {[%emt 0:00:04]} Nf6 {[%emt 0:00:07]} 3. Nc3 {[%emt 0:00:06]} e5 {[%emt 0:00:11]} 4. Nf3 {[%emt 0:00:04]} Nbd7 {[%emt 0:00:13]} 5. Bc4 {[%emt 0:01:29]} Be7 {[%emt 0:00:10]} 6. O-O {[%emt 0:14:07]} O-O {[%emt 0:00:07]} 7. h3 {[%emt 0:00:51]} c6 {[%emt 0:00:35]} 8. a4 {[%emt 0:10:59]} h6 {[%emt 0:00:21]} 9. Ba2 {[%emt 0:01:04]} Re8 {[%emt 0:00:36]} 10. Be3 {[%emt 0:00:59]} exd4 {[%emt 0:06:04]} 11. Bxd4 {[%emt 0:02:14]} Nf8 {[%emt 0:01:17]} 12. Qd2 {[%emt 0:11:06]} Be6 {[%emt 0:01:18]} 13. Rfd1 {[%emt 0:00:04]} Bxa2 {[%emt 0:04:55]} 14. Rxa2 {[%emt 0:00:04]} Ng6 {[%emt 0:09:46]} 15. Ne1 {[%emt 0:09:42]} Bf8 {[%emt 0:04:14]} 16. f3 {[%emt 0:00:05]} d5 {[%emt 0:05:25]} 17. exd5 {[%emt 0:02:33]} Nxd5 {[%emt 0:02:09]} 18. Ne4 {[%emt 0:00:10]} Ndf4 {[%emt 0:06:13]} 19. Be3 {[%emt 0:09:07]} Qxd2 {[%emt 0:22:21]} 20. Bxd2 {[%emt 0:00:05]} Rad8 {[%emt 0:02:27]} 21. Raa1 {[%emt 0:07:17]} f5 {[%emt 0:00:51]} 22. Ng3 {[%emt 0:00:19]} Bc5+ {[%emt 0:14:19]} 23. Kf1 {[%emt 0:01:58]} Rd5 {[%emt 0:01:20]} 24. Bxf4 {[%emt 0:05:58]} Nxf4 {[%emt 0:00:16]} 25. Rxd5 {[%emt 0:00:08]} Nxd5 {[%emt 0:01:20]} 26. Nxf5 {[%emt 0:00:41]} Re5 {[%emt 0:05:00]} 27. g4 {[%emt 0:00:08]} Nf4 {[%emt 0:04:29]} 28. Nd3 {[%emt 0:00:33]} Nxd3 {[%emt 0:00:05]} 29. cxd3 {[%emt 0:00:04]} Bb4 {[%emt 0:00:11]} 30. d4 {[%emt 0:01:58]} Ra5 {[%emt 0:01:41]} 31. b3 {[%emt 0:01:33]} h5 {[%emt 0:03:31]} 32. Rd1 {[%emt 0:02:13]} Kf7 {[%emt 0:00:52]} 33. f4 {[%emt 0:03:38]} hxg4 {[%emt 0:01:23]} 34. hxg4 {[%emt 0:00:04]} g6 {[%emt 0:01:05]} 35. Ne3 {[%emt 0:00:05]} Bd6 {[%emt 0:00:14]} 36. Ng2 {[%emt 0:10:58]} b5 {[%emt 0:01:36]} 37. axb5 {[%emt 0:00:52]} cxb5 {[%emt 0:00:18]} 38. Ke2 {[%emt 0:01:18]} Ra3 {[%emt 0:00:34]} 39. Rd3 {[%emt 0:01:09]} a5 {[%emt 0:00:04]} 40. Ke3 {[%emt 0:00:00]} Ra1 {[%emt 0:00:00]} 41. Ke4 {[%emt 0:02:50]} a4 {[%emt 0:04:47]} 42. bxa4 {[%emt 0:00:54]} bxa4 {[%emt 0:00:18]} 43. Kd5 {[%emt 0:01:07]} Be7 {[%emt 0:03:40]} 44. Ne3 {[%emt 0:09:57]} a3 {[%emt 0:07:32]} 45. Nc2 {[%emt 0:02:53]} Rg1 {[%emt 0:01:04]} 46. Nxa3 {[%emt 0:00:07]} Rxg4 {[%emt 0:00:07]} 47. Ke5 {[%emt 0:00:41]} Bf6+ {[%emt 0:00:32]} 48. Ke4 {[%emt 0:00:06]} g5 {[%emt 0:00:12]} 49. Rf3 {[%emt 0:00:03]} Bxd4 {[%emt 0:00:44]} 50. Kxd4 {[%emt 0:00:08]} Rxf4+ {[%emt 0:00:02]} 51. Rxf4+ {[%emt 0:00:05]} gxf4 {[%emt 0:00:04]} 52. Ke4 {[%emt 0:00:05]} 1/2-1/2

[Event "European Womens-ch 2025"]
[Site "Rhodes"]
[Date "2025.04.01"]
[Round "2.31"]
[White "Milliet, Sophie"]
[Black "Yildiz, Elif Zeren"]
[Result "1-0"]
[Annotator "RC"]
[ECO "E05"]
[WhiteElo "2371"]
[BlackElo "2160"]
[PlyCount "117"]
[EventDate "2025.03.29"]
[EventType "swiss"]
[EventCountry "GRE"]
[SourceTitle "playchess.com"]
[Source "ChessBase"]
[SourceQuality "1"]
[TimeControl "40/5400+30:1800+30"]

1. d4 {[%emt 0:00:04]} Nf6 {[%emt 0:00:35]} 2. c4 {[%emt 0:00:06]} e6 {[%emt 0:00:05]} 3. g3 {[%emt 0:00:04]} d5 {[%emt 0:01:43]} 4. Bg2 {[%emt 0:00:07]} Be7 {[%emt 0:00:51]} 5. Nf3 {[%emt 0:00:05]} O-O {[%emt 0:00:04]} 6. O-O {[%emt 0:00:07]} dxc4 {[%emt 0:07:04]} 7. Qc2 {[%emt 0:00:11]} b5 {[%emt 0:00:06]} 8. a4 {[%emt 0:00:45]} b4 {[%emt 0:00:05]} 9. Nfd2 {[%emt 0:00:17]} Nd5 {[%emt 0:04:14]} 10. Nxc4 {[%emt 0:00:11]} c5 {[%emt 0:09:09]} 11. dxc5 {[%emt 0:00:26]} Bxc5 {[%emt 0:02:18]} 12. e4 {[%emt 0:01:32]} Nb6 {[%emt 0:07:31]} 13. Rd1 {[%emt 0:00:33]} N8d7 {[%emt 0:06:01]} 14. Nxb6 {[%emt 0:00:18]} axb6 {[%emt 0:03:23]} 15. Nd2 {[%emt 0:00:24]} Bb7 {[%emt 0:09:04]} 16. Nb3 {[%emt 0:04:49]} Qe7 {[%emt 0:04:45]} 17. Bf4 {[%emt 0:06:46]} Rfc8 {[%emt 0:06:48]} 18. Qd2 {[%emt 0:11:41]} Bc6 {[%emt 0:06:36]} 19. Nxc5 {[%emt 0:02:44]} bxc5 {[%emt 0:00:43]} 20. Bd6 {[%emt 0:00:33]} Qd8 {[%emt 0:02:30]} 21. b3 {[%emt 0:02:27]} Qb6 {[%emt 0:02:01]} 22. Rac1 {[%emt 0:03:38]} Ra5 {[%emt 0:04:54]} 23. Qe3 {[%emt 0:06:42]} h6 {[%emt 0:01:47]} 24. Bf1 {[%emt 0:05:03]} Qa7 {[%emt 0:06:30]} 25. h4 {[%emt 0:13:59]} Qb6 {[%emt 0:02:36]} 26. Be2 {[%emt 0:01:26]} Qb7 {[%emt 0:03:02]} 27. f3 {[%emt 0:03:21]} Qb6 {[%emt 0:00:13]} 28. Kf2 {[%emt 0:05:53]} Qa7 {[%emt 0:01:21]} 29. g4 {[%emt 0:01:07]} Bb7 {[%emt 0:03:56]} 30. h5 {[%emt 0:05:37]} Ba6 {[%emt 0:02:20]} 31. Bxa6 {[%emt 0:03:40]} Rxa6 {[%emt 0:00:01]} 32. Rc4 {[%emt 0:10:51]} f6 {[%emt 0:02:13]} 33. f4 {[%emt 0:03:33]} e5 {[%emt 0:00:49]} 34. g5 {[%emt 0:04:57]} exf4 35. Qxf4 {[%emt 0:00:01]} Ne5 {[%emt 0:02:02]} 36. Qf5 {[%emt 0:01:57]} Qd7 {[%emt 0:00:30]} 37. Bxe5 {[%emt 0:00:49]} Qxf5+ {[%emt 0:00:01]} 38. exf5 {[%emt 0:00:04]} fxe5 {[%emt 0:00:01]} 39. g6 {[%emt 0:00:52]} Rf6 {[%emt 0:00:27]} 40. Ke3 {[%emt 0:00:00]} Rxf5 {[%emt 0:00:00]} 41. Rd7 {[%emt 0:08:19]} Rxh5 {[%emt 0:14:25]} 42. Rxc5 {[%emt 0:01:14]} Rh3+ {[%emt 0:01:34]} 43. Ke4 {[%emt 0:00:09]} Rh4+ {[%emt 0:01:45]} 44. Kd5 {[%emt 0:00:33]} Re8 {[%emt 0:00:06]} 45. Rcc7 {[%emt 0:06:58]} Rd4+ {[%emt 0:00:07]} 46. Kc5 {[%emt 0:00:57]} Rxd7 {[%emt 0:01:35]} 47. Rxd7 {[%emt 0:00:01]} e4 {[%emt 0:01:28]} 48. a5 {[%emt 0:02:38]} e3 {[%emt 0:00:06]} 49. Rd1 {[%emt 0:00:05]} e2 {[%emt 0:04:06]} 50. Re1 {[%emt 0:00:04]} Kf8 {[%emt 0:00:14]} 51. Kxb4 {[%emt 0:05:06]} h5 {[%emt 0:00:31]} 52. Kc4 {[%emt 0:10:06]} h4 {[%emt 0:00:47]} 53. b4 {[%emt 0:00:06]} h3 {[%emt 0:00:08]} 54. a6 {[%emt 0:00:16]} Rc8+ {[%emt 0:04:55]} 55. Kb5 {[%emt 0:02:39]} h2 {[%emt 0:02:06]} 56. a7 {[%emt 0:00:14]} Re8 {[%emt 0:00:34]} 57. Kc5 {[%emt 0:00:51]} Rc8+ {[%emt 0:01:18]} 58. Kb6 {[%emt 0:00:06]} Re8 {[%emt 0:00:05]} 59. b5 {[%emt 0:00:19]} 1-0

[Event "European Womens-ch 2025"]
[Site "Rhodes"]
[Date "2025.04.01"]
[Round "2.32"]
[White "Kiolbasa, Oliwia"]
[Black "Heinatz, Gundula"]
[Result "1-0"]
[Annotator "RC"]
[ECO "B22"]
[WhiteElo "2360"]
[BlackElo "2111"]
[PlyCount "81"]
[EventDate "2025.03.29"]
[EventType "swiss"]
[EventCountry "GRE"]
[SourceTitle "playchess.com"]
[Source "ChessBase"]
[SourceQuality "1"]
[TimeControl "40/5400+30:1800+30"]

1. e4 {[%emt 0:00:43]} c5 {[%emt 0:00:10]} 2. Nf3 {[%emt 0:00:06]} g6 {[%emt 0:00:08]} 3. d4 {[%emt 0:02:56]} Bg7 {[%emt 0:00:12]} 4. c3 {[%emt 0:04:33]} d5 {[%emt 0:01:30]} 5. e5 {[%emt 0:03:04]} cxd4 {[%emt 0:00:30]} 6. cxd4 {[%emt 0:02:51]} Nc6 {[%emt 0:01:08]} 7. h3 {[%emt 0:01:47]} Nh6 {[%emt 0:07:13]} 8. Nc3 {[%emt 0:02:32]} O-O {[%emt 0:03:08]} 9. Bb5 {[%emt 0:05:00]} f6 {[%emt 0:03:27]} 10. O-O {[%emt 0:03:47]} a6 {[%emt 0:14:03]} 11. Bxc6 {[%emt 0:01:49]} bxc6 {[%emt 0:00:05]} 12. Re1 {[%emt 0:00:30]} g5 {[%emt 0:13:20]} 13. e6 {[%emt 0:09:28]} Qd6 {[%emt 0:01:11]} 14. Qe2 {[%emt 0:03:16]} a5 {[%emt 0:02:49]} 15. Na4 {[%emt 0:04:24]} Nf5 {[%emt 0:10:40]} 16. Nc5 {[%emt 0:15:23]} Rb8 {[%emt 0:04:37]} 17. Qc2 {[%emt 0:02:08]} Nh6 {[%emt 0:09:40]} 18. Bd2 {[%emt 0:00:12]} Rb5 {[%emt 0:02:26]} 19. a4 {[%emt 0:02:38]} Rb8 {[%emt 0:00:47]} 20. Rad1 {[%emt 0:08:13]} Kh8 {[%emt 0:03:15]} 21. Bxa5 {[%emt 0:01:33]} g4 {[%emt 0:03:05]} 22. hxg4 {[%emt 0:02:26]} Qf4 {[%emt 0:01:11]} 23. Nd3 {[%emt 0:04:47]} Qxg4 {[%emt 0:00:52]} 24. Bc7 {[%emt 0:00:07]} Ba6 {[%emt 0:03:39]} 25. Bxb8 {[%emt 0:00:44]} Rxb8 {[%emt 0:00:09]} 26. Qxc6 {[%emt 0:01:23]} Bxd3 {[%emt 0:00:37]} 27. Rxd3 {[%emt 0:00:06]} Nf5 {[%emt 0:00:41]} 28. a5 {[%emt 0:01:21]} Rg8 {[%emt 0:00:53]} 29. Qxd5 {[%emt 0:03:41]} Bh6 {[%emt 0:01:11]} 30. Nh2 {[%emt 0:00:15]} Qg6 {[%emt 0:03:29]} 31. a6 {[%emt 0:01:51]} Bf4 {[%emt 0:00:56]} 32. Nf1 {[%emt 0:02:23]} Nh4 {[%emt 0:01:18]} 33. Rg3 {[%emt 0:02:09]} Bxg3 {[%emt 0:00:18]} 34. fxg3 {[%emt 0:00:06]} Qf5 {[%emt 0:03:19]} 35. Ne3 {[%emt 0:02:22]} Qd3 {[%emt 0:02:52]} 36. a7 {[%emt 0:01:18]} Qd2 {[%emt 0:00:26]} 37. Kf1 {[%emt 0:00:22]} Qd3+ {[%emt 0:00:57]} 38. Kf2 {[%emt 0:00:22]} Qa6 {[%emt 0:00:57]} 39. gxh4 {[%emt 0:01:00]} Qxa7 {[%emt 0:00:05]} 40. Nf5 {[%emt 0:00:00]} Qc7 {[%emt 0:00:00]} 41. Kg1 {[%emt 0:05:16]} 1-0

[Event "European Womens-ch 2025"]
[Site "Rhodes"]
[Date "2025.04.01"]
[Round "2.33"]
[White "Khachatryan, Anna"]
[Black "Guichard, Pauline"]
[Result "1-0"]
[Annotator "RC"]
[ECO "A34"]
[WhiteElo "2091"]
[BlackElo "2355"]
[PlyCount "151"]
[EventDate "2025.03.29"]
[EventType "swiss"]
[EventCountry "GRE"]
[SourceTitle "playchess.com"]
[Source "ChessBase"]
[SourceQuality "1"]
[TimeControl "40/5400+30:1800+30"]

1. c4 {[%emt 0:00:12]} c5 {[%emt 0:01:27]} 2. Nc3 {[%emt 0:00:18]} Nf6 {[%emt 0:00:16]} 3. g3 {[%emt 0:00:16]} d5 {[%emt 0:00:17]} 4. cxd5 {[%emt 0:00:20]} Nxd5 {[%emt 0:00:08]} 5. Bg2 {[%emt 0:00:06]} Nc7 {[%emt 0:00:12]} 6. d3 {[%emt 0:00:25]} e5 {[%emt 0:01:30]} 7. Be3 {[%emt 0:00:18]} Be7 {[%emt 0:07:00]} 8. Rc1 {[%emt 0:00:30]} Nd7 {[%emt 0:00:43]} 9. Nf3 {[%emt 0:01:11]} O-O {[%emt 0:05:10]} 10. O-O {[%emt 0:00:38]} Rb8 {[%emt 0:01:05]} 11. a4 {[%emt 0:02:31]} b5 {[%emt 0:09:07]} 12. axb5 {[%emt 0:12:21]} Nxb5 {[%emt 0:00:44]} 13. Qa4 {[%emt 1:17:54]} Nd4 {[%emt 0:03:01]} 14. Qxa7 {[%emt 0:00:00]} Bb7 {[%emt 0:05:32]} 15. Nd2 {[%emt 0:00:00]} Bxg2 {[%emt 0:13:53]} 16. Kxg2 {[%emt 0:00:00]} Rxb2 {[%emt 0:00:10]} 17. Nc4 {[%emt 0:00:00]} Rb3 {[%emt 0:05:03]} 18. Bxd4 {[%emt 0:00:00]} cxd4 {[%emt 0:04:29]} 19. Nd5 {[%emt 0:00:00]} Bg5 {[%emt 0:40:13]} 20. Rb1 {[%emt 0:03:30]} Qb8 {[%emt 0:00:00]} 21. Qxb8 {[%emt 0:00:00]} Rfxb8 {[%emt 0:00:00]} 22. Rxb3 {[%emt 0:00:00]} Rxb3 {[%emt 0:00:00]} 23. Ra1 {[%emt 0:00:00]} Rb5 {[%emt 0:00:00]} 24. Ra8+ {[%emt 0:00:00]} Nf8 {[%emt 0:02:30]} 25. Ndb6 {[%emt 0:00:00]} g6 {[%emt 0:00:00]} 26. Nd7 {[%emt 0:03:00]} Be7 {[%emt 0:00:00]} 27. Re8 {[%emt 0:00:00]} Bb4 {[%emt 0:00:00]} 28. Nxf8 {[%emt 0:00:00]} Bxf8 {[%emt 0:00:00]} 29. Rxe5 {[%emt 0:00:00]} Rb8 {[%emt 0:00:00]} 30. Rd5 {[%emt 0:00:00]} Bg7 {[%emt 0:00:00]} 31. g4 {[%emt 0:00:00]} h6 {[%emt 0:00:00]} 32. Kf3 {[%emt 0:00:00]} Kf8 {[%emt 0:00:00]} 33. Rd7 {[%emt 0:00:00]} Ke8 {[%emt 0:00:00]} 34. Ra7 {[%emt 0:00:00]} Rd8 {[%emt 0:00:00]} 35. h3 {[%emt 0:00:00]} Bf6 {[%emt 0:00:00]} 36. Rc7 {[%emt 0:00:21]} Kf8 {[%emt 0:00:00]} 37. Nb6 {[%emt 0:00:23]} Rd6 {[%emt 0:00:00]} 38. Nd7+ {[%emt 0:01:25]} Kg7 {[%emt 0:00:00]} 39. Nxf6 {[%emt 0:00:48]} Rxf6+ {[%emt 0:00:00]} 40. Kg2 {[%emt 0:00:00]} Re6 {[%emt 0:00:00]} 41. Kf1 {[%emt 0:02:58]} Rd6 {[%emt 0:00:00]} 42. Ke1 {[%emt 0:09:08]} Rd5 {[%emt 0:06:53]} 43. Kf1 {[%emt 0:03:17]} h5 {[%emt 0:02:32]} 44. Kg2 {[%emt 0:01:36]} hxg4 {[%emt 0:09:14]} 45. hxg4 {[%emt 0:00:33]} g5 {[%emt 0:00:47]} 46. Kf3 {[%emt 0:04:11]} Rd6 {[%emt 0:02:45]} 47. Rc5 {[%emt 0:00:54]} f6 {[%emt 0:01:59]} 48. Rc2 {[%emt 0:03:13]} Re6 {[%emt 0:06:08]} 49. Rc7+ {[%emt 0:00:41]} Kg6 {[%emt 0:00:39]} 50. Rd7 {[%emt 0:01:12]} Ra6 {[%emt 0:00:56]} 51. Rxd4 {[%emt 0:00:36]} Ra1 {[%emt 0:00:36]} 52. Rd7 {[%emt 0:01:50]} Rh1 {[%emt 0:01:31]} 53. Ke3 {[%emt 0:02:10]} Rh3+ {[%emt 0:01:13]} 54. f3 {[%emt 0:00:51]} Rh1 {[%emt 0:00:37]} 55. d4 {[%emt 0:00:41]} Rd1 {[%emt 0:00:54]} 56. Ke4 {[%emt 0:02:31]} Rd2 {[%emt 0:00:40]} 57. e3 {[%emt 0:00:55]} Rd1 {[%emt 0:00:41]} 58. Ra7 {[%emt 0:01:57]} Rd2 {[%emt 0:00:52]} 59. d5 {[%emt 0:00:47]} Rd1 {[%emt 0:01:01]} 60. Ra4 {[%emt 0:01:44]} Kf7 {[%emt 0:00:42]} 61. Rd4 {[%emt 0:00:40]} Rf1 {[%emt 0:00:39]} 62. d6 {[%emt 0:00:41]} Ke8 {[%emt 0:00:35]} 63. d7+ {[%emt 0:00:41]} Kd8 {[%emt 0:00:32]} 64. f4 {[%emt 0:01:31]} Rg1 {[%emt 0:01:12]} 65. Kf5 {[%emt 0:01:00]} gxf4 {[%emt 0:00:00]} 66. exf4 {[%emt 0:00:00]} Rg2 {[%emt 0:00:00]} 67. g5 {[%emt 0:00:00]} fxg5 {[%emt 0:00:00]} 68. fxg5 {[%emt 0:00:00]} Rf2+ {[%emt 0:00:00]} 69. Kg6 {[%emt 0:00:00]} Rg2 {[%emt 0:00:00]} 70. Kf6 {[%emt 0:00:00]} Rf2+ {[%emt 0:00:00]} 71. Kg7 {[%emt 0:00:00]} Re2 {[%emt 0:00:00]} 72. g6 {[%emt 0:00:00]} Rg2 {[%emt 0:00:00]} 73. Kf7 {[%emt 0:00:00]} Rf2+ {[%emt 0:00:00]} 74. Kg8 {[%emt 0:00:00]} Rg2 {[%emt 0:00:00]} 75. g7 {[%emt 0:00:00]} Rg1 {[%emt 0:00:00]} 76. Rd5 {[%emt 0:00:00]} 1-0

[Event "European Womens-ch 2025"]
[Site "Rhodes"]
[Date "2025.04.01"]
[Round "2.34"]
[White "Gaponenko, Inna"]
[Black "Vidic, Teja"]
[Result "1/2-1/2"]
[Annotator "RC"]
[ECO "C68"]
[WhiteElo "2349"]
[BlackElo "2100"]
[PlyCount "100"]
[EventDate "2025.03.29"]
[EventType "swiss"]
[EventCountry "GRE"]
[SourceTitle "playchess.com"]
[Source "ChessBase"]
[SourceQuality "1"]
[TimeControl "40/5400+30:1800+30"]

1. e4 {[%emt 0:00:03]} e5 {[%emt 0:00:05]} 2. Nf3 {[%emt 0:00:06]} Nc6 {[%emt 0:00:05]} 3. Bb5 {[%emt 0:00:10]} a6 {[%emt 0:00:06]} 4. Bxc6 {[%emt 0:00:12]} dxc6 {[%emt 0:00:07]} 5. O-O {[%emt 0:00:07]} Qf6 {[%emt 0:00:05]} 6. d4 {[%emt 0:04:33]} exd4 {[%emt 0:00:23]} 7. Bg5 {[%emt 0:00:06]} Qd6 {[%emt 0:00:13]} 8. Qxd4 {[%emt 0:01:27]} Qxd4 {[%emt 0:00:51]} 9. Nxd4 {[%emt 0:00:02]} Bd7 {[%emt 0:00:07]} 10. Nc3 {[%emt 0:00:34]} Ne7 {[%emt 0:05:03]} 11. Rad1 {[%emt 0:03:53]} O-O-O {[%emt 0:02:04]} 12. f3 {[%emt 0:22:58]} f6 {[%emt 0:06:16]} 13. Be3 {[%emt 0:04:59]} Ng6 {[%emt 0:00:44]} 14. Nf5 {[%emt 0:07:03]} Ne5 {[%emt 0:03:15]} 15. b3 {[%emt 0:11:13]} Nf7 {[%emt 0:12:32]} 16. Ng3 {[%emt 0:15:53]} Be7 {[%emt 0:01:08]} 17. Na4 {[%emt 0:06:33]} b6 {[%emt 0:12:02]} 18. Rd2 {[%emt 0:01:39]} Be6 {[%emt 0:08:36]} 19. Rfd1 {[%emt 0:00:21]} Rxd2 {[%emt 0:00:52]} 20. Rxd2 {[%emt 0:00:01]} Rd8 {[%emt 0:00:09]} 21. Rxd8+ {[%emt 0:00:11]} Nxd8 {[%emt 0:03:41]} 22. Nh5 {[%emt 0:07:52]} g6 {[%emt 0:02:32]} 23. Nf4 {[%emt 0:00:04]} Bf7 {[%emt 0:00:10]} 24. Kf2 {[%emt 0:02:58]} Kd7 {[%emt 0:02:10]} 25. Ke2 {[%emt 0:00:32]} h5 {[%emt 0:04:10]} 26. h4 {[%emt 0:00:54]} g5 {[%emt 0:07:18]} 27. hxg5 {[%emt 0:03:33]} fxg5 {[%emt 0:00:05]} 28. Nd3 {[%emt 0:00:41]} Bf6 {[%emt 0:00:32]} 29. Kd2 {[%emt 0:02:57]} Ne6 {[%emt 0:08:06]} 30. Nc3 {[%emt 0:00:09]} Bg6 {[%emt 0:00:08]} 31. Ne2 {[%emt 0:00:37]} g4 {[%emt 0:06:04]} 32. fxg4 {[%emt 0:02:44]} hxg4 {[%emt 0:00:12]} 33. Nf2 {[%emt 0:00:03]} Bh4 {[%emt 0:06:23]} 34. g3 {[%emt 0:01:22]} Be7 {[%emt 0:00:04]} 35. Kd3 {[%emt 0:00:56]} Bh5 {[%emt 0:01:12]} 36. Nf4 {[%emt 0:00:12]} Nxf4+ {[%emt 0:00:34]} 37. Bxf4 {[%emt 0:00:04]} Bc5 {[%emt 0:00:34]} 38. Nd1 {[%emt 0:00:59]} Bf7 {[%emt 0:06:05]} 39. Ne3 {[%emt 0:00:39]} Bxe3 {[%emt 0:01:16]} 40. Bxe3 {[%emt 0:00:00]} c5 {[%emt 0:00:00]} 41. Bf4 {[%emt 0:01:09]} b5 {[%emt 0:04:09]} 42. a3 {[%emt 0:00:04]} c4+ {[%emt 0:09:45]} 43. bxc4 {[%emt 0:00:05]} Bxc4+ {[%emt 0:00:02]} 44. Kd4 {[%emt 0:00:05]} Be2 {[%emt 0:00:23]} 45. c3 {[%emt 0:01:11]} a5 {[%emt 0:00:13]} 46. Bh6 {[%emt 0:02:01]} a4 {[%emt 0:00:37]} 47. Bf8 {[%emt 0:00:10]} Ke6 {[%emt 0:00:25]} 48. Bb4 {[%emt 0:01:05]} Bc4 {[%emt 0:00:34]} 49. Bc5 {[%emt 0:00:23]} Be2 {[%emt 0:00:06]} 50. Bb4 {[%emt 0:00:04]} Bc4 {[%emt 0:00:04]} 1/2-1/2

[Event "European Womens-ch 2025"]
[Site "Rhodes"]
[Date "2025.04.01"]
[Round "2.35"]
[White "Ter-Avetisjana, Agnesa Stepania"]
[Black "Mammadova, Gulnar"]
[Result "0-1"]
[Annotator "RC"]
[ECO "B51"]
[WhiteElo "2100"]
[BlackElo "2342"]
[PlyCount "104"]
[EventDate "2025.03.29"]
[EventType "swiss"]
[EventCountry "GRE"]
[SourceTitle "playchess.com"]
[Source "ChessBase"]
[SourceQuality "1"]
[TimeControl "40/5400+30:1800+30"]

1. e4 {[%emt 0:00:50]} c5 {[%emt 0:00:07]} 2. Nf3 {[%emt 0:00:28]} d6 {[%emt 0:00:10]} 3. Bb5+ {[%emt 0:02:04]} Nd7 {[%emt 0:00:12]} 4. O-O {[%emt 0:00:08]} a6 {[%emt 0:00:21]} 5. Bd3 {[%emt 0:00:07]} Ngf6 {[%emt 0:00:12]} 6. c3 {[%emt 0:04:56]} b5 {[%emt 0:01:20]} 7. Bc2 {[%emt 0:06:00]} Bb7 {[%emt 0:00:17]} 8. d3 {[%emt 0:01:58]} g6 {[%emt 0:04:17]} 9. Re1 {[%emt 0:00:23]} Bg7 {[%emt 0:00:26]} 10. Nbd2 {[%emt 0:04:04]} O-O {[%emt 0:00:40]} 11. Nf1 {[%emt 0:00:29]} e5 {[%emt 0:01:02]} 12. d4 {[%emt 0:08:27]} exd4 {[%emt 0:06:42]} 13. cxd4 {[%emt 0:00:20]} cxd4 {[%emt 0:02:10]} 14. Nxd4 {[%emt 0:03:42]} Re8 {[%emt 0:00:08]} 15. Ng3 {[%emt 0:02:54]} d5 {[%emt 0:04:33]} 16. a4 {[%emt 0:16:05]} b4 {[%emt 0:10:57]} 17. Bd2 {[%emt 0:06:56]} dxe4 {[%emt 0:08:00]} 18. Bxb4 {[%emt 0:12:37]} Nd5 {[%emt 0:01:11]} 19. Qd2 {[%emt 0:03:07]} Ne5 {[%emt 0:05:05]} 20. Ba5 {[%emt 0:05:08]} Nc4 {[%emt 0:07:37]} 21. Bxd8 {[%emt 0:00:36]} Nxd2 {[%emt 0:00:05]} 22. Ba5 {[%emt 0:04:11]} Nc4 {[%emt 0:01:59]} 23. Bc3 {[%emt 0:00:39]} e3 {[%emt 0:04:32]} 24. Bb3 {[%emt 0:06:05]} exf2+ {[%emt 0:00:44]} 25. Kxf2 {[%emt 0:00:09]} Ne5 {[%emt 0:00:41]} 26. Kg1 {[%emt 0:03:29]} Nf4 {[%emt 0:03:40]} 27. Ne4 {[%emt 0:07:34]} Ned3 {[%emt 0:04:03]} 28. Bxf7+ {[%emt 0:00:14]} Kxf7 {[%emt 0:01:01]} 29. Nd6+ {[%emt 0:00:01]} Kf8 {[%emt 0:00:07]} 30. Rxe8+ {[%emt 0:01:16]} Rxe8 {[%emt 0:00:02]} 31. Nxe8 {[%emt 0:00:09]} Kxe8 {[%emt 0:00:03]} 32. Nf3 {[%emt 0:00:51]} Bf8 {[%emt 0:00:39]} 33. Kf1 {[%emt 0:00:29]} Bd5 {[%emt 0:00:42]} 34. g3 {[%emt 0:00:30]} Bxf3 {[%emt 0:02:45]} 35. gxf4 {[%emt 0:00:01]} Kd7 {[%emt 0:00:37]} 36. a5 {[%emt 0:00:35]} Nxf4 {[%emt 0:01:24]} 37. Kf2 {[%emt 0:00:21]} Bd5 {[%emt 0:01:54]} 38. Ra4 {[%emt 0:01:05]} Bc5+ {[%emt 0:00:56]} 39. Ke1 {[%emt 0:00:29]} g5 {[%emt 0:01:57]} 40. Kd2 {[%emt 0:00:00]} Ne6 {[%emt 0:00:00]} 41. h4 {[%emt 0:02:45]} h5 {[%emt 0:03:52]} 42. hxg5 {[%emt 0:00:57]} Nxg5 {[%emt 0:00:05]} 43. Kd3 {[%emt 0:00:09]} Ne6 {[%emt 0:04:35]} 44. Rh4 {[%emt 0:01:44]} Be7 {[%emt 0:04:09]} 45. Rh2 {[%emt 0:00:32]} Nf4+ {[%emt 0:03:55]} 46. Kd4 {[%emt 0:01:23]} Kc6 {[%emt 0:00:23]} 47. Ke3 {[%emt 0:01:50]} Ng2+ {[%emt 0:00:41]} 48. Kf2 {[%emt 0:00:20]} Bc5+ {[%emt 0:02:56]} 49. Kf1 {[%emt 0:01:13]} Ne3+ {[%emt 0:02:23]} 50. Ke1 {[%emt 0:01:44]} h4 {[%emt 0:01:26]} 51. Bd2 {[%emt 0:02:27]} Ng4 {[%emt 0:01:40]} 52. Rh3 {[%emt 0:00:46]} Bg2 {[%emt 0:00:42]} 0-1